Workbook

Sheet Price List
B11: How to order? | D11: Name (First and last):
B12: Fill out this form, save it to your computer and email back to sales@detectablematerials.com | D12: Date:
D13: Store#:
D14: Number#:
B16: Stationary Range
B17: DETECTAMET PEN RANGE Elephant Pens HD Pens One Piece Pens Economy Pen Pen Refills Metal Case Pens Touch Screen Pen Stylus | C17: Marker & Highlighter Pen Range Marker Pen Range Retractable - Whiteboard Marker Retractable - Permanent Marker Non Retractable - Whiteboard Marker Non Retractable - Permanent Marker Fine Tip Marker Pen Highlighter Pen Range Retractable - Chisel Tip Highlighter Non Retractable - Chisel Tip Highlighter | E17: Detectable Clipboard Range Clipboard Range Colour Coded Clipboard Range Ring Binder Clipboards | G17: Office Equipment Calculators Paperclip Stapless Stapler Scissors ID Badge Holder Ruler Lanyards Split Ring/Safety Chain Grip Pen Sleeve Document Fastener Pen Holder Whiteboard Film Metal Detectable Paper Paper Holder
B20: Create Your Own - These options are customisable and will create your code and purchase price for you | O20: Unit Per Pack | P20: Running Total | Q20: =SUM(R20:R927) -> 0
G22: Product Code | P22: Quantity | Q22: Price | R22: Total
B23: Retractable Pen Type | C23: Ink | D23: Housing | E23: End Cap | F23: Attachment
B24: HD Retractable | C24: Blue | D24: Blue Housing | E24: Blue End | F24: With Clip | G24: 101 | H24: - | I24: =HLOOKUP(C24,'Coding and Prices'!D1:N3,3,0) -> I01 | J24: - | K24: =HLOOKUP(D24,'Coding and Prices'!P1:X4,4,0) -> C1 | L24: =HLOOKUP(E24,'Coding and Prices'!Y1:AG5,5,0) -> 1 | M24: - | N24: =HLOOKUP(F24,'Coding and Prices'!AH1:AJ6,6,0) -> PA01 | O24: 50 | Q24: =((INDEX('Coding and Prices'!A8:M10, MATCH(B24,'Coding and Prices'!A8:A10,0), MATCH(C24,'Coding and Prices'!A8:M8,0))))*1.06 -> 72.61 | R24: =Q24*P24 -> 0
B25: Elephant Retractable | C25: Blue | D25: Blue Housing | E25: Blue End | F25: With Clip | G25: 104 | H25: - | I25: =HLOOKUP(C25,'Coding and Prices'!D1:N3,3,0) -> I01 | J25: - | K25: =HLOOKUP(D25,'Coding and Prices'!P1:X4,4,0) -> C1 | L25: =HLOOKUP(E25,'Coding and Prices'!Y1:AG5,5,0) -> 1 | M25: - | N25: =HLOOKUP(F25,'Coding and Prices'!AH1:AJ6,6,0) -> PA01 | O25: 50 | Q25: =((INDEX('Coding and Prices'!A8:M10, MATCH(B25,'Coding and Prices'!A8:A10,0), MATCH(C25,'Coding and Prices'!A8:M8,0))))*1.06 -> 64.66 | R25: 0
B27: Stick Pen Type | C27: Ink | D27: Housing | E27: Attachment
B28: HD Stick | C28: Blue | D28: Blue Housing | E28: With Clip | G28: 106 | H28: - | I28: =HLOOKUP(C28,'Coding and Prices'!A12:G14,3,0) -> I01 | J28: - | K28: =HLOOKUP(D28,'Coding and Prices'!A12:P15,4,0) -> C101 | M28: - | N28: =HLOOKUP(E28,'Coding and Prices'!A12:S16,5,0) -> PA01 | O28: 50 | Q28: =((VLOOKUP(B28,'Coding and Prices'!A18:B20,2,0)))*1.06 -> 42.4 | R28: =Q28*P28 -> 0
B29: Elephant Stick | C29: Blue | D29: Blue Housing | E29: With Clip | G29: =INDEX('Coding and Prices'!A12:S16, MATCH(B27,'Coding and Prices'!A12:A16,0), MATCH(B29,'Coding and Prices'!A12:S12,0)) -> 105 | H29: - | I29: =INDEX('Coding and Prices'!A12:S16, MATCH(D27,'Coding and Prices'!A12:A16,0), MATCH(D29,'Coding and Prices'!A12:S12,0)) -> C101 | J29: - | K29: =INDEX('Coding and Prices'!A12:S16, MATCH(C27,'Coding and Prices'!A12:A16,0), MATCH(C29,'Coding and Prices'!A12:S12,0)) -> I01 | M29: - | N29: =INDEX('Coding and Prices'!A12:S16, MATCH(E27,'Coding and Prices'!A12:A16,0), MATCH(E29,'Coding and Prices'!A12:S12,0)) -> PA01 | O29: 50 | Q29: =((VLOOKUP(B29,'Coding and Prices'!A19:B20,2,0)))*1.06 -> 37.1 | R29: =Q29*P29 -> 0
B31: Metal Case Pen | C31: Ink | D31: Attachment | H31: 115M | J31: - | K31: =HLOOKUP(C32,'Coding and Prices'!A22:P23,2,0) -> I01 | L31: - | M31: =HLOOKUP(D32,'Coding and Prices'!B22:P24,3,0) -> PA05 | O31: 50 | Q31: =((INDEX('Coding and Prices'!A26:M29, MATCH(D32,'Coding and Prices'!A26:A29,0), MATCH(C32,'Coding and Prices'!A26:M26,0))))*1.06 -> 95.93 | R31: =P31*Q31 -> 0
C32: Blue | D32: Standard (No Clip)
B34: Stainless Steel Pen Type | C34: Ink | I34: =HLOOKUP(B35,'Coding and Prices'!A31:C33,2,0) -> 113 | J34: - | K34: A05 | L34: - | M34: =HLOOKUP(C35,'Coding and Prices'!A31:O33,3,0) -> I01 | O34: 10 | Q34: =((INDEX('Coding and Prices'!A35:M37, MATCH(B35,'Coding and Prices'!A35:A37,0), MATCH(C35,'Coding and Prices'!A35:M35,0)))*1.85)*1.06 -> 39.22 | R34: =P34*Q34 -> 0
B35: Stainless Steel Managers Pen | C35: Blue
B37: SP Stick Pen | C37: Ink | I37: 119 | J37: - | K37: =HLOOKUP(C38,'Coding and Prices'!D18:H19,2,0) -> I01 | L37: - | M37: PA02 | O37: 100 | Q37: 93.28 | R37: =P37*Q37 -> 0
C38: Blue
B40: Economy Retractable Pen | C40: Ink | I40: 125 | J40: - | K40: PA01 | L40: - | M40: =HLOOKUP(C41,'Coding and Prices'!D18:H19,2,0) -> I01 | O40: 50 | Q40: 44.1225 | R40: =P40*Q40 -> 0
C41: Blue
B43: Pen Refill Type (Suitable for HD , Elephant & Metal case pens) | C43: Colour
B44: Standard Ink | C44: Blue | I44: 100 | J44: - | K44: =HLOOKUP(C44,'Coding and Prices'!E184:H186,3,0) -> I01 | O44: 50 | Q44: 39.22 | R44: =Q44*P44 -> 0
B45: Gel Ink | C45: Blue | I45: 100 | J45: - | K45: =HLOOKUP(C45,'Coding and Prices'!A188:E189,2,0) -> I21 | O45: 50 | Q45: 63.6 | R45: 0
B46: Cryo Ink | C46: Blue | I46: 100 | J46: - | K46: =HLOOKUP(C46,'Coding and Prices'!A188:E190,3,0) -> I11 | O46: 50 | Q46: 100.17 | R46: 0
B47: Fine Tip Ink | C47: Blue | I47: 100 | J47: - | K47: =HLOOKUP(C47,'Coding and Prices'!A188:E191,4,0) -> I31 | O47: 50 | Q47: 63.6 | R47: 0
B48: Economy Ink | C48: Blue | I48: 124 | J48: - | K48: =HLOOKUP(C48,'Coding and Prices'!A188:E192,5,0) -> I01 | O48: 50 | Q48: 10.6 | R48: 0
B49: Stick Pen Ink | C49: Blue | I49: 117 | J49: - | K49: =HLOOKUP(C49,'Coding and Prices'!A188:E192,5,0) -> I01 | O49: 50 | Q49: 31.8 | R49: 0
B51: Stylus | C51: Blue | I51: 122 | J51: - | K51: A65 | O51: 10 | Q51: 31.376 | R51: =Q51*P51 -> 0
B54: Touch Screen Pen | C54: 2 in 1 | D54: Blue | E54: Blue Ink | G54: 121 | H54: - | I54: T202 | J54: - | K54: C101 | L54: - | N54: I01 | O54: 10 | Q54: 112.784 | R54: =Q54*P54 -> 0
B57: Easygrip Pen Sleeve | C57: Type | D57: Blue | I57: 123 | J57: - | K57: P01 | L57: - | N57: =HLOOKUP(C58,'Coding and Prices'!A300:C301,2,0) -> S060 | O57: 10 | Q57: 20.14 | R57: =Q57*P57 -> 0
C58: Single Pen Sleeve
B60: Detectable Mechanical Pencil | C60: Metal Case | D60: 0.5mm 2B | I60: 131 | J60: - | K60: C100 | L60: - | N60: I50 | O60: 10 | Q60: 21.73 | R60: =Q60*P60 -> 0
B63: Mechanical Pencil Refills | C63: Spare Pencil Leads | D63: 0.5mm 2B | I63: 131B | J63: - | K63: T201 | L63: - | N63: I50 | O63: 10 | Q63: 1.06 | R63: =Q63*P63 -> 0
B65: Marker & Highlighter Pen Range
B67: Marker Pen Type | C67: Ink | D67: Retractable? | E67: Tip Type | G67: =INDEX('Coding and Prices'!A39:K43, MATCH(B67,'Coding and Prices'!A39:A43,0), MATCH(B68,'Coding and Prices'!A39:K39,0)) -> 146 | H67: - | I67: =INDEX('Coding and Prices'!A39:K43, MATCH(D67,'Coding and Prices'!A39:A43,0), MATCH(D68,'Coding and Prices'!A39:K39,0)) -> A05 | J67: - | K67: =INDEX('Coding and Prices'!A39:K43, MATCH(C67,'Coding and Prices'!A39:A43,0), MATCH(C68,'Coding and Prices'!A39:K39,0)) -> P01 | L67: - | M67: =INDEX('Coding and Prices'!A39:K43, MATCH(E67,'Coding and Prices'!A39:A43,0), MATCH(E68,'Coding and Prices'!A39:K39,0)) -> A07 | O67: 10 | Q67: =((VLOOKUP(D68,'Coding and Prices'!A45:B47,2,0))*1.85)*1.06 -> 29.8072 | R67: =P67*Q67 -> 0
B68: Permanent Marker | C68: Blue | D68: Retractable | E68: Bullet Tip
B70: Fine Permanent Marker | C70: Ink | I70: 147 | J70: - | K70: A06 | L70: - | M70: =HLOOKUP(C71,'Coding and Prices'!A39:I43,4,0) -> P01 | O70: 10 | Q70: 25.6891 | R70: =P70*Q70 -> 0
C71: Blue
B73: Food/Meat Marker | C73: Marker Type | D73: Ink | I73: 148 | J73: - | K73: =HLOOKUP(C74,'Coding and Prices'!J18:N20,2,0) -> T041 | L73: - | M73: =HLOOKUP(D74,'Coding and Prices'!J18:N20,3,0) -> P01 | O73: 10 | Q73: 34.3175 | R73: =P73*Q73 -> 0
C74: Meat Marker | D74: Blue
B76: Highlighter | C76: Ink | D76: Retractable? | E76: Tip Type | G76: 150 | H76: - | I76: =INDEX('Coding and Prices'!A55:H58, MATCH(D76,'Coding and Prices'!A55:A58,0), MATCH(D77,'Coding and Prices'!A55:H55,0)) -> A05 | J76: - | K76: =INDEX('Coding and Prices'!A55:H58, MATCH(C76,'Coding and Prices'!A55:A58,0), MATCH(C77,'Coding and Prices'!A55:H55,0)) -> P04 | L76: - | M76: A08 | O76: 5 | Q76: =((VLOOKUP(D77,'Coding and Prices'!A49:B51,2,0))*1.85)*1.06 -> 12.2513475 | R76: =P76*Q76 -> 0
C77: Green | D77: Retractable | E77: Chisel Tip
B79: Assorted Retractable Highlighters | C79: 5 Colour Pack | D79: Pink, Blue, Yellow, Orange & Green | I79: 150 | J79: - | K79: T154 | O79: 5 | Q79: 12.5504 | R79: =P79*Q79 -> 0
B82: Assorted Non Retractable Highlighters | C82: 5 Colour Pack | D82: Pink, Blue, Yellow, Orange & Green | I82: 150 | J82: - | K82: A06 | L82: - | N82: T154 | O82: 5 | Q82: 11.5699 | R82: =P82*Q82 -> 0
B85: Retractable Highlighter Refills | C85: Colour | I85: 156 | J85: - | K85: =HLOOKUP(C86,'Coding and Prices'!A1087:F1088,2,0) -> P01 | L85: - | N85: A08 | O85: 5 | Q85: 5.883 | R85: =P85*Q85 -> 0
C86: Blue
B88: Assorted Retractable Highlighter Refills | C88: 5 Colour Pack | D88: Pink, Blue, Yellow, Orange & Green | I88: 150 | J88: - | K88: ASSORTED | O88: 5 | Q88: 5.883 | R88: =P88*Q88 -> 0
B90: Detectable Plastic Clipboard Range
B92: Detectable Plastic Clipboard | C92: Size/Orientation | D92: Colour/Material | F92: Attachment | G92: 300 | H92: - | I92: =INDEX('Coding and Prices'!A60:AC64, MATCH(C92,'Coding and Prices'!A60:A64,0), MATCH(C93,'Coding and Prices'!A60:AC60,0)) -> O21 | J92: - | K92: =INDEX('Coding and Prices'!A60:AC64, MATCH(D92,'Coding and Prices'!A60:A64,0), MATCH(D93,'Coding and Prices'!A60:AC60,0)) -> P03 | L92: - | M92: =INDEX('Coding and Prices'!A60:AC64, MATCH(F92,'Coding and Prices'!A60:A64,0), MATCH(F93,'Coding and Prices'!A60:AC60,0)) -> A12 | O92: 1 | Q92: =((INDEX('Coding and Prices'!A66:N72, MATCH(C93,'Coding and Prices'!A66:A72,0), MATCH(F93,'Coding and Prices'!A66:N66,0)))*1.85)*1.06 -> 10.801188 | R92: =P92*Q92 -> 0
C93: A5 Landscape | D93: Red | F93: Economy Chrome Plated
B95: Magentic Detectable Plastic Clipboard | C95: Size/Orientation | D95: Colour/Material | F95: Attachment | G95: 301 | H95: - | I95: =HLOOKUP(C96,'Coding and Prices'!A990:G992,3,0) -> O06 | J95: - | K95: =HLOOKUP(D96,'Coding and Prices'!A990:P994,4,0) -> P01 | L95: - | M95: =HLOOKUP(F96,'Coding and Prices'!A990:T994,5,0) -> A10 | O95: 1 | Q95: =((INDEX('Coding and Prices'!A996:E1002,MATCH('Price List'!C96,'Coding and Prices'!A996:A1002,0),MATCH('Price List'!F96,'Coding and Prices'!A996:E996,0)))*1.85)*1.06 -> 26.8987703 | R95: =P95*Q95 -> 0
C96: A4 Portrait | D96: Blue | F96: HD St/St Clip
B98: Ring Binder Clipboards | C98: Size/Orientation | D98: Colour | F98: Attachment
C99: A3 Landscape | D99: Blue | F99: 2 Ring | G99: 300 | H99: - | I99: O04 | J99: - | K99: =HLOOKUP(D99,'Coding and Prices'!A1011:J1012,2,0) -> P01 | L99: - | N99: =HLOOKUP(F99,'Coding and Prices'!A1011:L1013,3,0) -> A138 | O99: 1 | Q99: =((HLOOKUP(F99,'Coding and Prices'!A1015:C1016,2,0))*1.85)*1.06 -> 44.0078521 | R99: =Q99*P99 -> 0
C100: A4 Portrait | D100: Blue | F100: 2 Ring | G100: 300 | H100: - | I100: O06 | J100: - | K100: =HLOOKUP(D100,'Coding and Prices'!A1011:J1012,2,0) -> P01 | L100: - | N100: A138 | O100: 1 | Q100: 15.70761 | R100: =Q100*P100 -> 0
C101: A4 Landscape | D101: Blue | F101: 4 Ring | G101: 300 | H101: - | I101: O05 | J101: - | K101: =HLOOKUP(D101,'Coding and Prices'!A1011:J1012,2,0) -> P01 | L101: - | N101: A139 | O101: 1 | Q101: 16.29591 | R101: =Q101*P101 -> 0
B104: Magnetic Ring Binder Clipboards | C104: Size/Orientation | D104: Colour | F104: Attachment
C105: A3 Landscape | D105: Blue | F105: 2 Ring | G105: 300 | H105: - | I105: O04 | J105: - | K105: =HLOOKUP(D105,'Coding and Prices'!A1011:J1012,2,0) -> P01 | L105: - | N105: =HLOOKUP(F105,'Coding and Prices'!K1011:L1013,3,0) -> A138 | O105: 1 | Q105: =(((HLOOKUP(F105,'Coding and Prices'!A1024:C1025,2,0))*1.08)*1.85)*1.06 -> 58.2840576 | R105: =Q105*P105 -> 0
C106: A4 Portrait | D106: Blue | F106: 2 Ring | G106: 300 | H106: - | I106: O06 | J106: - | K106: =HLOOKUP(D106,'Coding and Prices'!A1011:J1012,2,0) -> P01 | L106: - | N106: A138 | O106: 1 | Q106: 25.4569176 | R106: =Q106*P106 -> 0
C107: A4 Landscape | D107: Blue | F107: 4 Ring | G107: 300 | H107: - | I107: O05 | J107: - | K107: =HLOOKUP(D107,'Coding and Prices'!A1011:J1012,2,0) -> P01 | L107: - | N107: A139 | O107: 1 | Q107: 26.1346392 | R107: =Q107*P107 -> 0
B109: Office Equipment
B111: Solar Powered Fully Detectable Calculators | C111: Handheld | D111: Attachment | I111: 202 | J111: =HLOOKUP(D112,'Coding and Prices'!A819:C820,2,0) -> C | K111: - | M111: P01 | O111: 1 | Q111: =(HLOOKUP(D112,'Coding and Prices'!A822:C823,2,0))*1.06 -> 21.7088 | R111: =Q111*P111 -> 0
D112: With safety chain
B114: Detectable Calculators | C114: Type | I114: 202 | J114: =HLOOKUP(C115,'Coding and Prices'!A209:D210,2,0) -> D | K114: - | M114: P01 | O114: 1 | Q114: =((HLOOKUP(C115,'Coding and Prices'!B212:D213,2,0))*1.85)*1.06 -> 34.3943712 | R114: =Q114*P114 -> 0
C115: Desktop
B117: Detectable Calculators Holders | C117: Magnetic status | D117: Type | E117: Colour | I117: =HLOOKUP(C118,'Coding and Prices'!A198:C199,2,0) -> 214 | J117: =HLOOKUP(D118,'Coding and Prices'!A198:F200,3,0) -> P | K117: - | M117: =HLOOKUP(E118,'Coding and Prices'!A198:O201,4,0) -> P02 | O117: 1 | Q117: =((INDEX('Coding and Prices'!A203:D205,MATCH(C118,'Coding and Prices'!A203:A205,0),MATCH(D118,'Coding and Prices'!A203:D203,0)))*1.85)*1.06 -> 12.601386 | R117: =Q117*P117 -> 0
C118: Magnetic | D118: Pocket | E118: Black
B120: Detectable Stopwatch | C120: Blue | D120: Complete with Safety Chain | G120: 201 | H120: - | I120: A65 | J120: - | K120: P01 | L120: - | N120: A55 | O120: 1 | Q120: 22.0047732 | R120: =Q120*P120 -> 0
B123: Detectable Process Timer | C123: Blue | I123: 215 | J123: - | K123: P01 | O123: 1 | Q123: 22.0047732 | R123: =Q123*P123 -> 0
B125: Detectable Plastic Ruler | C125: Type | D125: Blue | G125: 204 | H125: - | I125: P01 | J125: - | K125: =HLOOKUP(C126,'Coding and Prices'!A217:C218,2,0) -> S069 | L125: - | N125: X27 | O125: 5 | Q125: =((HLOOKUP(C126,'Coding and Prices'!A220:C221,2,0))*1.85)*1.06 -> 8.047944 | R125: =Q125*P125 -> 0
C126: 150mm (6")
B127: Stainless Steel Rulers | C127: Type | G127: 208 | H127: - | I127: P32 | J127: - | K127: =HLOOKUP(C128,'Coding and Prices'!A225:D226,2,0) -> S069 | L127: - | N127: X27 | O127: 1 | Q127: =((HLOOKUP(C128,'Coding and Prices'!A228:D229,2,0))*1.85)*1.06 -> 1.3130856 | R127: =Q127*P127 -> 0
C128: 150mm (6")
B130: Scissors | C130: (216mm) 8½" | D130: ST/ST Blade | G130: 206 | H130: - | I130: S237 | J130: - | K130: P01 | L130: - | N130: Q01 | O130: 1 | Q130: 12.1142736 | R130: =Q130*P130 -> 0
B133: Scissors | C133: (216mm) 8½" | D133: ST/ST Blade | G133: 219 | H133: - | I133: P01 | J133: - | K133: S237 | L133: - | N133: Q03 | O133: 1 | Q133: 15.58995 | R133: =Q133*P133 -> 0
B136: Scissors / Knife Holder | C136: Colour | I136: 218 | J136: - | K136: =HLOOKUP(C137,'Coding and Prices'!A980:J981,2,0) -> P01 | O136: 5 | Q136: 44.1225 | R136: =Q136*P136 -> 0
C137: Blue
B139: Non Detectable - Stapless Stapler (HD Version - Up to 8 Sheets) | C139: Colour | G139: 207 | H139: - | I139: A66 | J139: - | K139: T145 | L139: - | N139: =HLOOKUP(C140,'Coding and Prices'!A307:F308,2,0) -> P012 | O139: 1 | Q139: =((HLOOKUP(C140,'Coding and Prices'!A310:F311,2,0))*1.85)*1.06 -> 19.7174628 | R139: =Q139*P139 -> 0
C140: Light Blue
B142: Non Detectable - Stapless Stapler (MD Version - Up to 6 Sheets) | C142: Colour | G142: 207 | H142: - | I142: A66 | J142: - | K142: T146 | L142: - | N142: =HLOOKUP(C143,'Coding and Prices'!A313:F314,2,0) -> P13 | O142: 1 | Q142: =((HLOOKUP(C143,'Coding and Prices'!A316:F317,2,0))*1.85)*1.06 -> 13.1096772 | R142: =Q142*P142 -> 0
C143: Light Green
B145: Detectable Stapless Stapler | C145: Blue | G145: 207 | H145: - | I145: A65 | J145: - | K145: T184 | L145: - | N145: P01 | O145: 5 | Q145: 49.452498 | R145: =Q145*P145 -> 0
B148: Non Detectable Paper Crimper (5 Sheet Capacity) | C148: Blue | G148: 207 | H148: - | I148: A66 | J148: - | K148: T302 | L148: - | N148: P01 | O148: 1 | Q148: 29.415 | R148: =Q148*P148 -> 0
B151: Marker Pen and Eraser Holder | C151: Type | I151: 319 | J151: - | K151: P01 | L151: - | N151: =HLOOKUP(C152,'Coding and Prices'!A666:C667,2,0) -> A10 | O151: 1 | Q151: =((HLOOKUP(C152,'Coding and Prices'!A669:C670,2,0))*1.85)*1.06 -> 23.78802816 | R151: =Q151*P151 -> 0
C152: With ST/ST Clip
Q153: UNIT PRICE
B154: Pen Springs (Stainless Steel) | C154: Quantity | I154: 151 | J154: - | K154: P32 | O154: 1 | Q154: =((HLOOKUP(C155,'Coding and Prices'!A672:F673,2,0))*1.85)*1.06 -> 0.205857936 | R154: =Q154*P154 -> 0
C155: 5000+ pcs
B157: Safety chain with st/st clasp | C157: 762mm (30") 2.4mm diameter | G157: 154 | H157: - | I157: P44 | J157: - | K157: S083 | L157: - | N157: A93 | O157: 10 | Q157: 18.637344 | R157: =Q157*P157 -> 0
B160: Connection Clasp (St/St) | C160: To use with stainless steel chain | I160: 152 | J160: - | K160: P32 | O160: 50 | Q160: 3.1376 | R160: =Q160*P160 -> 0
B163: Split Rings (St/St) | C163: Connects chain to pens | I163: 153 | J163: - | K163: T203 | O163: 10 | Q163: 2.1571 | R163: =Q163*P163 -> 0
B166: Keyboard Station | C166: Blue | I166: 509 | J166: - | K166: P01 | O166: 1 | Q166: 21.920058 | R166: =Q166*P166 -> 0
B169: Mouse Mat | C169: 210 x 160 x 3mm (8.3 x 6.3 x 0.1") | G169: 203 | H169: - | I169: A65 | J169: - | K169: P01 | L169: - | N169: S232 | O169: 1 | Q169: 20.2681116 | R169: =Q169*P169 -> 0
B172: Retractable Badge/ID Reel | C172: Nylon Cord | I172: 217 | J172: - | K172: A65 | O172: 4 | Q172: 23.1398 | R172: =Q172*P172 -> 0
B175: Swipe Card Holders | C175: Attachment | D175: Colours | G175: 212 | H175: - | I175: A65 | J175: - | K175: =HLOOKUP(C176,'Coding and Prices'!A983:C984,2,0) -> A55 | L175: - | N175: =HLOOKUP(D176,'Coding and Prices'!A983:L985,3,0) -> P01 | O175: 25 | Q175: =((HLOOKUP(C176,'Coding and Prices'!A987:C988,2,0))*1.85)*1.06 -> 74.518 | R175: =Q175*P175 -> 0
C176: Complete with chain | D176: Blue
B178: ID Tag | C178: Colour | D178: 50 x 22mm | G178: 205 | H178: - | I178: A65 | J178: - | K178: =HLOOKUP(C179,'Coding and Prices'!A638:J639,2,0) -> P01 | L178: - | N178: S130 | O178: 50 | Q178: 16.6685 | R178: =Q178*P178 -> 0
C179: Blue
B181: Lanyards | C181: Complete with safety break hook | D181: Colours | I181: 154 | J181: - | K181: =HLOOKUP(D182,'Coding and Prices'!A675:J676,2,0) -> P05 | L181: - | N181: S082 | O181: 10 | Q181: 20.5905 | R181: =Q181*P181 -> 0
D182: Yellow
B184: High Visual Lanyards | C184: Complete with safety break hook | D184: Colours | I184: 154 | J184: - | K184: =HLOOKUP(D185,'Coding and Prices'!K675:L676,2,0) -> P63 | L184: - | N184: S082 | O184: 10 | Q184: 20.5905 | R184: =Q184*P184 -> 0
D185: Hi Vis Yellow
B187: Large Paper Clip | C187: 80mm x 40mm (3.14" x 1.6") | D187: Colours | I187: 210 | J187: - | K187: S243 | L187: - | N187: =HLOOKUP(D188,'Coding and Prices'!A678:J679,2,0) -> P07 | O187: 30 | Q187: 26.4735 | R187: =Q187*P187 -> 0
D188: Purple
B190: Metal Detectable Paper | C190: Size | D190: Pack Size | G190: 251 | H190: - | I190: =HLOOKUP(C191,'Coding and Prices'!A1058:C1059,2,0) -> S04 | J190: - | K190: P06 | L190: - | N190: =HLOOKUP(D191,'Coding and Prices'!A1058:F1060,3,0) -> X11 | Q190: =((INDEX('Coding and Prices'!A1062:D1064,MATCH('Price List'!C191,'Coding and Prices'!A1062:A1064,0),MATCH('Price List'!D191,'Coding and Prices'!A1062:D1062,0)))*1.85)*1.06 -> 80.0088 | R190: =Q190*P190 -> 0
C191: A4 | D191: 100 Sheets
B193: Fully Detectable Paper Holder | C193: Size | I193: 254 | J193: - | K193: =HLOOKUP(C194,'Coding and Prices'!A1067:C1068,2,0) -> S407 | L193: - | N193: P01 | O193: 1 | Q193: =((HLOOKUP(C194,'Coding and Prices'!A1070:C1071,2,0))*1.85)*1.06 -> 2.98072 | R193: =Q193*P193 -> 0
C194: To suit Memo paper - 95 x 95 mm (3.7" x 3.7")
B196: Document Fastener | C196: Reusable , 2 Part | D196: Blue Only | G196: 209 | H196: - | I196: A65 | J196: - | K196: A72 | L196: - | N196: P01 | O196: 10 | Q196: 3.5298 | R196: =Q196*P196 -> 0
B199: Whiteboard Film | C199: Full Roll Size | D199: Size | I199: 306 | J199: - | K199: =HLOOKUP(D200,'Coding and Prices'!A1005:C1006,2,0) -> S121 | O199: 1 | Q199: =((HLOOKUP(D200,'Coding and Prices'!A1008:C1009,2,0))*1.85)*1.06 -> 128.4553521 | R199: =Q199*P199 -> 0
D200: 3000 x 1000mm roll
B202: Detectable Tape Measure | C202: Type | D202: Measures Up to 5 metres | F202: Blue Only | I202: 468 | J202: - | K202: S575 | L202: - | N202: =HLOOKUP(C203,'Coding and Prices'!A1451:C1452,2,0) -> P64 | O202: 1 | Q202: =((HLOOKUP(C203,'Coding and Prices'!A1454:C1455,2,0))*1.85)*1.06 -> 39.12195 | R202: =Q202*P202 -> 0
C203: Heavy Duty Stainless Steel Tape
B204: Stainless Steel & Aluminium Range
B205: CLIPBOARD RANGE Stainless Steel Clipboards Aluminium Clipboards Stainless Steel Hanging Clipboard Aluminium Hanging Clipboard Clipboard with Ring Binder Mechanism | C205: Document / File Holders Ring Binders Colour Coded Ring Binders Lever Arch Files Ring Binder Mechanism Mobile Desks Wall Mounted Document Holders File Holders Recipe Card Holder | E205: Catering Equipment ST/ST Handing Equipment ST/ST Measuring Equipment ST/ST Mixing Equipment | G205: Other A Frame Floor Sign Utility Stand Flip Charts Tote Bin Cover Dispenser Stainless Steel Dispensers Recipe Card Holder Scrapers
B207: Stainless Steel Clipboard | C207: Size/Orientation | D207: Attachment | G207: 300 | H207: - | I207: =INDEX('Coding and Prices'!A74:T77, MATCH(C207,'Coding and Prices'!A74:A77,0), MATCH(C208,'Coding and Prices'!A74:T74,0)) -> O06 | J207: - | K207: P45 | L207: - | M207: =INDEX('Coding and Prices'!A74:T77, MATCH(D207,'Coding and Prices'!A74:A77,0), MATCH(D208,'Coding and Prices'!A74:T74,0)) -> A12 | O207: 1 | Q207: =((INDEX('Coding and Prices'!A79:N85,MATCH('Price List'!C208,'Coding and Prices'!A79:A85,0),MATCH('Price List'!D208,'Coding and Prices'!A79:N79,0)))*1.85)*1.06 -> 22.555422 | R207: =Q207*P207 -> 0
C208: A4 Portrait | D208: Economy Chrome Plated
B210: Stainless Steel Ring Binder Clipboards | C210: Size/Orientation | D210: Attachment
C211: A3 Landscape | D211: 4 Ring | G211: 300 | H211: - | I211: O04 | J211: - | K211: P45 | L211: - | N211: =HLOOKUP(D211,'Coding and Prices'!K1011:L1013,3,0) -> A139 | O211: 1 | Q211: =((HLOOKUP(D211,'Coding and Prices'!A1018:C1019,2,0))*1.85)*1.06 -> 49.26866602 | R211: =Q211*P211 -> 0
C212: A4 Portrait | D212: 2 Ring | G212: 300 | H212: - | I212: O06 | J212: - | K212: P45 | L212: - | N212: A138 | O212: 1 | Q212: 26.4311424 | R212: =Q212*P212 -> 0
C213: A4 Landscape | D213: 4 Ring | G213: 300 | H213: - | I213: O05 | J213: - | K213: P45 | L213: - | N213: A139 | O213: 1 | Q213: 26.8758972 | R213: =Q213*P213 -> 0
C214: A4 Landscape | D214: 2 Ring | G214: 300 | H214: - | I214: O05 | J214: - | K214: P45 | L214: - | N214: A138 | O214: 1 | Q214: 26.4311424 | R214: =Q214*P214 -> 0
B217: Folded Clipboards (Complete with clipboard clip) | C217: Type | D217: Attachment | O217: 1
C218: A4 Aluminium | D218: Economy Chrome Plated | G218: 300 | H218: - | I218: O16 | J218: - | K218: =HLOOKUP(C218,'Coding and Prices'!B98:C99,2,0) -> P30 | L218: - | M218: =HLOOKUP(D218,'Coding and Prices'!D98:G100,3,0) -> A12 | Q218: =((INDEX('Coding and Prices'!A102:E104,MATCH('Price List'!C218,'Coding and Prices'!A102:A104,0),MATCH('Price List'!D218,'Coding and Prices'!A102:E102,0)))*1.85)*1.06 -> 30.921048 | R218: =Q218*P218 -> 0
B221: Stainless Steel - Rolled Clipboards (Complete with clipboard clip) | C221: Type | D221: Attachment | O221: 1 | Q221: =((HLOOKUP(D222,'Coding and Prices'!A136:E137,2,0))*1.85)*1.06 -> 50.88795 | R221: =Q221*P221 -> 0
C222: A4 | D222: HD St/St Clip | G222: 300 | H222: - | I222: O17 | J222: - | K222: P45 | L222: - | M222: =HLOOKUP(D222,'Coding and Prices'!A132:G134,3,0) -> A10
B225: Aluminium - Rolled Clipboards (Complete with clipboard clip) | C225: Type | D225: Attachment | O225: 1 | Q225: =((INDEX('Coding and Prices'!A139:E141,MATCH(C226,'Coding and Prices'!A139:A141,0),MATCH('Price List'!D226,'Coding and Prices'!A139:E139,0)))*1.85)*1.06 -> 30.921048 | R225: =Q225*P225 -> 0
C226: A4 | D226: Economy St/St Clip | G226: 300 | H226: - | I226: =HLOOKUP(C226,'Coding and Prices'!A132:C133,2,0) -> O17 | J226: - | K226: P30 | L226: - | M226: =HLOOKUP(D226,'Coding and Prices'!A132:G134,3,0) -> A11
B229: Aluminium Clipboard | C229: Size/Orientation | D229: Attachment | G229: 300 | H229: - | I229: =INDEX('Coding and Prices'!A74:T77, MATCH(C229,'Coding and Prices'!A74:A77,0), MATCH(C230,'Coding and Prices'!A74:T74,0)) -> O05 | J229: - | K229: P30 | L229: - | M229: =INDEX('Coding and Prices'!A60:AC64, MATCH(D229,'Coding and Prices'!A60:A64,0), MATCH(D230,'Coding and Prices'!A60:AC60,0)) -> A15 | O229: 1 | Q229: =(INDEX('Coding and Prices'!A87:N93, MATCH(C230,'Coding and Prices'!A87:A93,0), MATCH(D230,'Coding and Prices'!A87:N87,0)))*1.85 -> 46.25 | R229: =P229*Q229 -> 0
C230: A4 Landscape | D230: Blue HD St/St Clip
B232: Aluminium Ring Binder Clipboards | C232: Size/Orientation | D232: Attachment
C233: A3 Landscape | D233: 4 Ring | G233: 300 | H233: - | I233: O04 | J233: - | K233: P46 | L233: - | N233: =HLOOKUP(D233,'Coding and Prices'!K1011:L1013,3,0) -> A139 | O233: 1 | Q233: =((HLOOKUP(D233,'Coding and Prices'!A1021:C1022,2,0))*1.85)*1.06 -> 23.45356 | R233: =Q233*P233 -> 0
C234: A4 Portrait | D234: 2 Ring | G234: 300 | H234: - | I234: O06 | J234: - | K234: P46 | L234: - | N234: A138 | O234: 1 | Q234: 18.213768 | R234: =Q234*P234 -> 0
C235: A4 Landscape | D235: 4 Ring | G235: 300 | H235: - | I235: O05 | J235: - | K235: P46 | L235: - | N235: A139 | O235: 1 | Q235: 18.6585228 | R235: =Q235*P235 -> 0
C236: A4 Landscape | D236: 2 Ring | G236: 300 | H236: - | I236: O05 | J236: - | K236: P46 | L236: - | N236: A138 | O236: 1 | Q236: 18.213768 | R236: =Q236*P236 -> 0
B239: Clipboards Clips | C239: Type | I239: 307 | J239: - | K239: =HLOOKUP(C240,'Coding and Prices'!A146:H147,2,0) -> T186 | O239: 5 | Q239: =((HLOOKUP(C240,'Coding and Prices'!A149:H150,2,0))*1.85)*1.06 -> 17.8451 | R239: =Q239*P239 -> 0
C240: 120 x 30mm economy chrome plated (with hook)
B242: Magentic Pen Holder | C242: Zinc Plated | I242: 308 | J242: - | K242: T189 | O242: 10 | Q242: 17.2568 | R242: =Q242*P242 -> 0
B245: Bulldog Clips | C245: Size | I245: 307 | J245: - | K245: =HLOOKUP(C246,'Coding and Prices'!A120:C121,2,0) -> S392 | L245: - | N245: P32 | O245: 5 | Q245: =((HLOOKUP(C246,'Coding and Prices'!A123:C124,2,0))*1.85)*1.06 -> 48.0445 | R245: =Q245*P245 -> 0
C246: 145mm (5.7")
B248: Colour Coded Clipboards Clips (ST/ST) | C248: Heavy Duty Clip | D248: Colour | I248: 307 | J248: - | K248: =HLOOKUP(D249,'Coding and Prices'!A106:E107,2,0) -> T091 | O248: 5 | Q248: =((HLOOKUP(D249,'Coding and Prices'!A109:E110,2,0))*1.85)*1.06 -> 47.2601 | R248: =Q248*P248 -> 0
D249: Green
B251: Colour Coded Clipboards Clips (Econ Chrome) | C251: Economy Chrome Clip | D251: Colour | I251: 307 | J251: - | K251: =HLOOKUP(D252,'Coding and Prices'!A112:E113,2,0) -> T140 | O251: 5 | Q251: =((HLOOKUP(D252,'Coding and Prices'!A115:E116,2,0))*1.85)*1.06 -> 18.6295 | R251: =Q251*P251 -> 0
D252: Blue
B253: Document & File Holders
B255: Stainless Steel Ring Binders | C255: Size/ Orientation | D255: Type | G255: 311 | H255: - | I255: P45 | J255: - | K255: =HLOOKUP(C256,'Coding and Prices'!A321:C322,2,0) -> O06 | L255: - | N255: =HLOOKUP(D256,'Coding and Prices'!A321:F323,3,0) -> A30 | O255: 1 | Q255: =((INDEX('Coding and Prices'!A325:D327,MATCH('Price List'!C256,'Coding and Prices'!A325:A327,0),MATCH('Price List'!D256,'Coding and Prices'!A325:D325,0)))*1.85)*1.06 -> 47.6734788 | R255: =Q255*P255 -> 0
C256: A4 Portrait | D256: 2 Ring
B258: Aluminium Ring Binders | C258: Size/ Orientation | D258: Type | G258: 311 | H258: - | I258: P46 | J258: - | K258: =HLOOKUP(C259,'Coding and Prices'!A332:D333,2,0) -> O04 | L258: - | N258: =HLOOKUP(D259,'Coding and Prices'!A332:G334,3,0) -> A34 | O258: 1 | Q258: =((INDEX('Coding and Prices'!A336:D339,MATCH('Price List'!C259,'Coding and Prices'!A336:A339,0),MATCH('Price List'!D259,'Coding and Prices'!A336:D336,0)))*1.85)*1.06 -> 51.7609872 | R258: =Q258*P258 -> 0
C259: A3 Landscape | D259: 4 Ring
B261: Colour Coded Ring Binders (Aluminium) | C261: A4 | D261: 2 Ring Mechanism | E261: Colour | G261: 311 | H261: - | I261: =HLOOKUP(E262,'Coding and Prices'!A341:E342,2,0) -> P01 | J261: - | K261: O01 | L261: - | N261: A143 | O261: 1 | Q261: =((HLOOKUP(E262,'Coding and Prices'!A344:E345,2,0))*1.85)*1.06 -> 38.015946 | R261: =Q261*P261 -> 0
E262: Blue
B264: Ring Binder (Mechanism Only) | C264: Chrome Plated | D264: Type | I264: 316 | J264: - | K264: P42 | L264: - | N264: =HLOOKUP(D265,'Coding and Prices'!A353:F354,2,0) -> A32 | O264: 10 | Q264: =((HLOOKUP(D265,'Coding and Prices'!A356:F357,2,0))*1.85)*1.06 -> 28.8267 | R264: =Q264*P264 -> 0
D265: 3 ring (30mm diameter ring)
B267: Lever Arch File Files | C267: Type | I267: 317 | J267: - | K267: =HLOOKUP(C268,'Coding and Prices'!A347:C348,2,0) -> P31 | L267: - | N267: O18 | O267: 1 | Q267: =((HLOOKUP(C268,'Coding and Prices'!A350:C351,2,0))*1.85)*1.06 -> 45.1972535 | R267: =Q267*P267 -> 0
C268: Aluminium
B270: Anodised Aluminium Mobile Desks | C270: Type | I270: 317 | J270: - | K270: =HLOOKUP(C271,'Coding and Prices'!A361:E362,2,0) -> S791 | O270: 1 | Q270: =((HLOOKUP(C271,'Coding and Prices'!A364:E365,2,0))*1.85)*1.06 -> 28.3584132 | R270: =Q270*P270 -> 0
C271: Top Hinged
B273: Anodised Aluminium Form Holder (Side Hinged) | C273: Size | I273: 328 | J273: - | K273: H03 | L273: - | N273: =HLOOKUP(C274,'Coding and Prices'!A369:D370,2,0) -> S798 | O273: 1 | Q273: =((HLOOKUP(C274,'Coding and Prices'!A372:D373,2,0))*1.85)*1.06 -> 33.69208219 | R273: =Q273*P273 -> 0
C274: W - 230mm x L - 360mm x H 20mm
B276: Anodised Aluminium Form Holder (Top Hinged) | I276: 328 | J276: - | K276: H01 | L276: - | N276: S791 | O276: 1 | Q276: 27.57166 | R276: =Q276*P276 -> 0
C277: W - 230mm x L - 360mm x H 25mm
B279: Anodised Aluminium Form Holder (Bottom Hinged) | C279: Size | I279: 328 | J279: - | K279: H04 | L279: - | N279: =HLOOKUP(C280,'Coding and Prices'!A377:C378,2,0) -> S794 | O279: 1 | Q279: =((HLOOKUP(C280,'Coding and Prices'!A380:C381,2,0))*1.85)*1.06 -> 32.66279251 | R279: =Q279*P279 -> 0
C280: W - 235mm x L - 320mm x H 30mm
B282: Anodised Aluminium Form Holder (Right Side Hinged) | I282: 328 | J282: - | K282: H02 | L282: - | N282: S792 | O282: 1 | Q282: 28.3584132 | R282: =Q282*P282 -> 0
C283: W - 230mm x L - 360mm x H 20mm
B285: Anodised Aluminium Form Holder (Bottom Hinged - Slim Type) | I285: 328 | J285: - | K285: H05 | L285: - | N285: S796 | O285: 1 | Q285: 23.6355408 | R285: =Q285*P285 -> 0
C286: W - 230mm x L - 360mm x H 20mm
B288: Anodised Aluminium Card Holder | C288: Orientation | I288: 326 | J288: - | K288: O12 | L288: - | N288: =HLOOKUP(C289,'Coding and Prices'!A383:C384,2,0) -> H09 | O288: 1 | Q288: 31.31717 | R288: =Q288*P288 -> 0
C289: Horizontal
B291: Recipe Card Holder | C291: A4 | D291: Type | I291: 320 | J291: - | K291: O18 | L291: - | N291: =HLOOKUP(D292,'Coding and Prices'!A388:C389,2,0) -> P30 | O291: 1 | Q291: =((HLOOKUP(D292,'Coding and Prices'!A391:C392,2,0))*1.85)*1.06 -> 15.4622183 | R291: =Q291*P291 -> 0
D292: Aluminium
B294: Document Trays | C294: Stainless Steel | D294: Size | I294: 320 | J294: - | K294: O18 | L294: - | N294: =HLOOKUP(D295,'Coding and Prices'!A394:C395,2,0) -> S240 | O294: 1 | Q294: =((HLOOKUP(D295,'Coding and Prices'!A397:C398,2,0))*1.85)*1.06 -> 90.3258877 | R294: =Q294*P294 -> 0
D295: Standard
B297: Stainless Steel File Holders | C297: Type | I297: 312 | J297: - | K297: P32 | L297: - | N297: =HLOOKUP(C298,'Coding and Prices'!A400:D401,2,0) -> S253 | O297: 1 | Q297: =((HLOOKUP(C298,'Coding and Prices'!A403:D404,2,0))*1.85)*1.06 -> 176.0314084 | R297: =Q297*P297 -> 0
C298: 3 Space File Holder
B300: Stainless Steel Wall Mounted Document/Clipboard Holder | C300: Size | I300: 458 | J300: - | K300: =HLOOKUP(C301,'Coding and Prices'!A660:C661,2,0) -> S04 | O300: 1 | Q300: =((HLOOKUP(C301,'Coding and Prices'!A663:C664,2,0))*1.85)*1.06 -> 59.35570488 | R300: =Q300*P300 -> 0
C301: A4
B303: Colour Coded Stainless Steel Wall Mounted Document/Clipboard Holder | C303: A4 | D303: Colour | I303: 458 | J303: - | K303: S04 | L303: - | N303: =HLOOKUP(D304,'Coding and Prices'!A1082:E1083,2,0) -> P01 | O303: 1 | Q303: 66.2261076 | R303: =Q303*P303 -> 0
D304: Blue
B306: Stainless Steel Wall Mounted File Holders | C306: A4 | D306: Orientation | I306: 322 | J306: - | K306: P32 | L306: - | N306: =HLOOKUP(D307,'Coding and Prices'!A1317:C1318,2,0) -> O06 | O306: 1 | Q306: 50.88795 | R306: =Q306*P306 -> 0
D307: Portrait
B308: Catering Equipment
B310: Buckets (304 -ST/ST) | C310: Type | D310: Capacity Size | I310: =HLOOKUP(C311,'Coding and Prices'!A825:C826,2,0) -> 562 | J310: - | K310: P32 | L310: - | M310: =HLOOKUP(D311,'Coding and Prices'!A825:G827,3,0) -> S029 | O310: 1 | Q310: =((INDEX('Coding and Prices'!A829:E831,MATCH('Price List'!C311,'Coding and Prices'!A829:A831,0),MATCH('Price List'!D311,'Coding and Prices'!A829:E829,0)))*1.85)*1.06 -> 51.9304176 | R310: =P310*Q310 -> 0
C311: Bucket Lids | D311: 10 Litre
B313: Buckets - Reinforced Foot (304 -ST/ST) | C313: Capacity Size | I313: 572 | J313: - | K313: P44 | L313: - | M313: =HLOOKUP(C314,'Coding and Prices'!A833:D834,2,0) -> S034 | O313: 1 | Q313: =((HLOOKUP(C314,'Coding and Prices'!A836:D837,2,0))*1.85)*1.06 -> 244.5304248 | R313: =P313*Q313 -> 0
C314: 15 Litre
B316: Buckets - Heavy Duty Acid Resistant (304 -ST/ST)
C317: 12 Litre | I317: 583 | J317: - | K317: P44 | L317: - | N317: S031 | O317: 1 | Q317: 468.9833472 | R317: =P317*Q317 -> 0
C318: Bucket Lid | D318: Suits Acid Resistant Bucket | I318: 584 | J318: - | K318: T068 | O318: 1 | Q318: 170.8493796 | R318: =P318*Q318 -> 0
B321: Buckets - without lid with draining foot, pouring lip | C321: 304 ST/ST - Extra Heavy Gauge | D321: Capacity Size | I321: 587 | J321: - | K321: P45 | L321: - | M321: =HLOOKUP(D322,'Coding and Prices'!A839:E840,2,0) -> S039 | O321: 1 | Q321: =((HLOOKUP(D322,'Coding and Prices'!A842:E843,2,0))*1.85)*1.06 -> 666.6450876 | R321: =P321*Q321 -> 0
D322: 20 Litre
B324: Multi Purpose Containers 304 Stainless Steel | C324: Standard | D324: Capacity Size | I324: 569 | J324: - | K324: P32 | L324: - | M324: =HLOOKUP(D325,'Coding and Prices'!A845:D846,2,0) -> S040 | O324: 1 | Q324: =((HLOOKUP(D325,'Coding and Prices'!A848:D849,2,0))*1.85)*1.06 -> 803.9684268 | R324: =P324*Q324 -> 0
D325: 25 Litre
C326: With reinforced handles | D326: Capacity Size | G326: 585 | H326: - | I326: A136 | J326: - | K326: P44 | L326: - | M326: =HLOOKUP(D327,'Coding and Prices'!A851:E852,2,0) -> S045 | O326: 1 | Q326: =((HLOOKUP(D327,'Coding and Prices'!A854:E855,2,0))*1.85)*1.06 -> 2341.549307 | R326: =P326*Q326 -> 0
D327: 150 Litre
B329: Multi Purpose Containers Lids | C329: Capacity Size | I329: 563 | J329: - | K329: P44 | L329: - | M329: =HLOOKUP(C330,'Coding and Prices'!A857:H858,2,0) -> S043 | O329: 1 | Q329: =((HLOOKUP(C330,'Coding and Prices'!A860:H861,2,0))*1.85)*1.06 -> 200.986812 | R329: =P329*Q329 -> 0
C330: 75 Litre
B332: Castors - For multi purpose containers | C332: Capacity Size | I332: 564 | J332: - | K332: P44 | L332: - | M332: =HLOOKUP(C333,'Coding and Prices'!A863:F864,2,0) -> S040 | O332: 1 | Q332: =((HLOOKUP(C333,'Coding and Prices'!A866:F867,2,0))*1.85)*1.06 -> 349.556094 | R332: =P332*Q332 -> 0
... 538 more rows

Sheet Coding and Prices
B1: HD Retractable | C1: Elephant Retractable | D1: Blue | E1: Black | F1: Red | G1: Green | H1: Blue Gel | I1: Black Gel | J1: Red Gel | K1: Green Gel | L1: Blue Cryo | M1: Black Cryo | N1: Blue Fine Tip | O1: Black Fine Tip | P1: Blue Housing | Q1: Black Housing | R1: Red Housing | S1: Green Housing | T1: Yellow Housing | U1: White Housing | V1: Purple Housing | W1: Orange Housing | X1: Pink Housing | Y1: Blue End | Z1: Black End | AA1: Red End | AB1: Green End | AC1: Yellow End | AD1: White End | AE1: Purple End | AF1: Orange End | AG1: Pink End | AH1: With Clip | AI1: Without Clip | AJ1: With Lanyard Attachment
A2: Retractable Pen Type | B2: 101 | C2: 104
A3: Ink | D3: I01 | E3: I02 | F3: I03 | G3: I04 | H3: I21 | I3: I22 | J3: I23 | K3: I24 | L3: I11 | M3: I12 | N3: I31 | O3: I32
A4: Housing | P4: C1 | Q4: C2 | R4: C3 | S4: C4 | T4: C5 | U4: C6 | V4: C7 | W4: C8 | X4: C9
A5: End Cap | Y5: 1 | Z5: 2 | AA5: 3 | AB5: 4 | AC5: 5 | AD5: 6 | AE5: 7 | AF5: 8 | AG5: 9
A6: Attachment | AH6: PA01 | AI6: PA02 | AJ6: PA03
A8: Pen Type | B8: Blue | C8: Black | D8: Red | E8: Green | F8: Blue Gel | G8: Black Gel | H8: Red Gel | I8: Green Gel | J8: Blue Cryo | K8: Black Cryo | L8: Blue Fine Tip | M8: Black Fine Tip
A9: Elephant Retractable | B9: 61 | C9: 61 | D9: 61 | E9: 61 | F9: 127.5 | G9: 127.5 | H9: 127.5 | I9: 127.5 | J9: 150 | K9: 150 | L9: 116.5 | M9: 116.5
A10: HD Retractable | B10: 68.5 | C10: 68.5 | D10: 68.5 | E10: 68.5 | F10: 142.5 | G10: 142.5 | H10: 142.5 | I10: 142.5 | J10: 162 | K10: 162 | L10: 137 | M10: 137
B12: HD Stick | C12: Elephant Stick | D12: Blue | E12: Black | F12: Red | G12: Green | H12: Blue Housing | I12: Black Housing | J12: Red Housing | K12: Green Housing | L12: Yellow Housing | M12: White Housing | N12: Purple Housing | O12: Orange Housing | P12: Pink Housing | Q12: With Clip | R12: Without Clip | S12: With Lanyard Attachment
A13: Stick Pen Type | B13: 116 | C13: 105
A14: Ink | D14: I01 | E14: I02 | F14: I03 | G14: I04
A15: Housing | H15: C101 | I15: C110 | J15: C103 | K15: C104 | L15: C105 | M15: C160 | N15: C107 | O15: C108 | P15: C109
A16: Attachment | Q16: PA01 | R16: PA02 | S16: PA03
A18: Pen Type | B18: Price | D18: Pen Type | E18: Blue | F18: Black | G18: Red | H18: Green | J18: Marker Pen Type | K18: Food Marker | L18: Meat Marker | M18: Blue | N18: Red
A19: Elephant Stick | B19: 35 | D19: SP Stick Pen | E19: I01 | F19: I02 | G19: I03 | H19: I04 | J19: Marker Type | K19: T040 | L19: T041
A20: HD Stick | B20: 40 | J20: Ink | M20: P01 | N20: P03
B22: Standard (No Clip) | C22: With Split Ring | D22: With Pocket Clip | E22: Blue | F22: Black | G22: Red | H22: Green | I22: Blue Gel | J22: Black Gel | K22: Red Gel | L22: Green Gel | M22: Blue Cryo | N22: Black Cryo | O22: Blue Fine Tip | P22: Black Fine Tip
A23: Ink | E23: I01 | F23: I02 | G23: I03 | H23: I04 | I23: I21 | J23: I22 | K23: I23 | L23: I24 | M23: I11 | N23: I12 | O23: I31 | P23: I32
A24: Attachment | B24: PA05 | C24: PA04 | D24: PA01
A26: Pen Type | B26: Blue | C26: Black | D26: Red | E26: Green | F26: Blue Gel | G26: Black Gel | H26: Red Gel | I26: Green Gel | J26: Blue Cryo | K26: Black Cryo | L26: Blue Fine Tip | M26: Black Fine Tip
A27: Standard (No Clip) | B27: 90.5 | C27: 90.5 | D27: 90.5 | E27: 90.5 | F27: 174 | G27: 174 | H27: 174 | I27: 174 | J27: 188.5 | K27: 188.5 | L27: 157.5 | M27: 157.5
A28: With Split Ring | B28: 102 | C28: 102 | D28: 102 | E28: 102 | F28: 174 | G28: 174 | H28: 174 | I28: 174 | J28: 188.5 | K28: 188.5 | L28: 157.5 | M28: 157.5
A29: With Pocket Clip | B29: 102 | C29: 102 | D29: 102 | E29: 102 | F29: 174 | G29: 174 | H29: 174 | I29: 174 | J29: 188.5 | K29: 188.5 | L29: 157.5 | M29: 157.5
B31: Stainless Steel Pen | C31: Stainless Steel Managers Pen | D31: Blue | E31: Black | F31: Red | G31: Green | H31: Blue Gel | I31: Black Gel | J31: Red Gel | K31: Green Gel | L31: Blue Cryo | M31: Black Cryo | N31: Blue Fine Tip | O31: Black Fine Tip
A32: Pen Type | B32: 114 | C32: 113
A33: Ink | D33: I01 | E33: I02 | F33: I03 | G33: I04 | H33: I21 | I33: I22 | J33: I23 | K33: I24 | L33: I11 | M33: I12 | N33: I31 | O33: I32
A35: Pen Type | B35: Blue | C35: Black | D35: Red | E35: Green | F35: Blue Gel | G35: Black Gel | H35: Red Gel | I35: Green Gel | J35: Blue Cryo | K35: Black Cryo | L35: Blue Fine Tip | M35: Black Fine Tip
A36: Stainless Steel Pen | B36: 18 | C36: 18 | D36: 18 | E36: 18 | F36: 22.5 | G36: 22.5 | H36: 22.5 | I36: 22.5 | J36: 27.5 | K36: 27.5 | L36: 21 | M36: 21
A37: Stainless Steel Managers Pen | B37: 20 | C37: 20 | D37: 20 | E37: 20 | F37: 24 | G37: 24 | H37: 24 | I37: 24 | J37: 36 | K37: 36 | L37: 27.5 | M37: 27.5
B39: Whiteboard Marker | C39: Permanent Marker | D39: Retractable | E39: Non Retractable | F39: Blue | G39: Black | H39: Red | I39: Green | J39: Bullet Tip | K39: Chisel Tip
A40: Marker Pen Type | B40: 145 | C40: 146
A41: Retractable? | D41: A05 | E41: A06
A42: Ink | F42: P01 | G42: P02 | H42: P03 | I42: P04
A43: Tip Type | J43: A07 | K43: A08
A45: Pen Type
A46: Retractable | B46: 15.2
A47: Non Retractable | B47: 11.5
A49: Pen Type
A50: Retractable | B50: 6.2475 | I50: 1.08
A51: Non Retractable | B51: 5.8
B55: Retractable | C55: Non Retractable | D55: Blue | E55: Green | F55: Yellow | G55: Orange | H55: Pink
A56: Highlighter
A57: Retractable? | B57: A05 | C57: A06
A58: Ink | D58: P01 | E58: P04 | F58: P05 | G58: P08 | H58: P09
B60: A3 Portrait | C60: A3 Landscape | D60: A4 Portrait | E60: A4 Landscape | F60: A5 Portrait | G60: A5 Landscape | H60: Blue | I60: Black | J60: Red | K60: Green | L60: Yellow | M60: White | N60: Purple | O60: Orange | P60: Pink | Q60: HD St/St Clip | R60: Economy St/St Clip | S60: Economy Chrome Plated | T60: Zinc Clip & Pen Holder | U60: Jumbo Clip | V60: Blue HD St/St Clip | W60: Red HD St/St Clip | X60: Green HD St/St Clip | Y60: Yellow HD St/St Clip | Z60: Blue Econ Chrome Clip | AA60: Red Econ Chrome Clip | AB60: Green Econ Chrome Clip | AC60: Yellow Econ Chrome Clip
A61: Clipboard Type
A62: Size/Orientation | B62: O07 | C62: O04 | D62: O06 | E62: O05 | F62: O08 | G62: O21
A63: Colour/Material | H63: P01 | I63: P02 | J63: P03 | K63: P04 | L63: P05 | M63: P06 | N63: P07 | O63: P08 | P63: P09
A64: Attachment | Q64: A10 | R64: A11 | S64: A12 | T64: A13 | U64: A94 | V64: A15 | W64: A16 | X64: A19 | Y64: A24 | Z64: A124 | AA64: A128 | AB64: A132 | AC64: A133
A66: Clipboard Type | B66: HD St/St Clip | C66: Economy St/St Clip | D66: Economy Chrome Plated | E66: Zinc Clip & Pen Holder | F66: Jumbo Clip | G66: Blue HD St/St Clip | H66: Red HD St/St Clip | I66: Green HD St/St Clip | J66: Yellow HD St/St Clip | K66: Blue Econ Chrome Clip | L66: Red Econ Chrome Clip | M66: Green Econ Chrome Clip | N66: Yellow Econ Chrome Clip
A67: A3 Landscape | B67: 11.7936 | C67: 9.5472 | D67: 8.8776 | E67: 10.0008 | F67: 0 | G67: 10.6164 | H67: 10.6164 | I67: 10.6164 | J67: 10.6164 | K67: 9.88 | L67: 9.88 | M67: 9.88 | N67: 9.88
A68: A4 Landscape | B68: 9.3312 | C68: 7.5276 | D68: 6.7932 | E68: 7.9164 | F68: 0 | G68: 9.0504 | H68: 9.0504 | I68: 9.0504 | J68: 9.0504 | K68: 7.79 | L68: 7.79 | M68: 7.79 | N68: 7.79
A69: A5 Landscape | B69: 8.1972 | C69: 6.0048 | D69: 5.508 | E69: 6.6312 | F69: 0 | G69: 8.0568 | H69: 8.0568 | I69: 8.0568 | J69: 8.0568 | K69: 6.51 | L69: 6.51 | M69: 6.51 | N69: 6.51
A70: A3 Portrait | B70: 11.7936 | C70: 9.5472 | D70: 8.8776 | E70: 10.0008 | F70: 0 | G70: 10.6164 | H70: 10.6164 | I70: 10.6164 | J70: 10.6164 | K70: 9.88 | L70: 9.88 | M70: 9.88 | N70: 9.88
A71: A4 Portrait | B71: 8.6292 | C71: 7.5276 | D71: 6.7932 | E71: 7.9164 | F71: 0 | G71: 9.0504 | H71: 9.0504 | I71: 9.0504 | J71: 9.0504 | K71: 7.79 | L71: 7.79 | M71: 7.79 | N71: 7.79
A72: A5 Portrait | B72: 8.1972 | C72: 6.0048 | D72: 5.508 | E72: 6.6312 | F72: 0 | G72: 8.0568 | H72: 8.0568 | I72: 8.0568 | J72: 8.0568 | K72: 6.51 | L72: 6.51 | M72: 6.51 | N72: 6.51
B74: A3 Portrait | C74: A3 Landscape | D74: A4 Portrait | E74: A4 Landscape | F74: A5 Portrait | G74: A5 Landscape | H74: HD St/St Clip | I74: Economy St/St Clip | J74: Economy Chrome Plated | K74: Zinc Clip & Pen Holder | L74: Jumbo Clip | M74: Blue HD St/St Clip | N74: Red HD St/St Clip | O74: Green HD St/St Clip | P74: Yellow HD St/St Clip | Q74: Blue Econ Chrome Clip | R74: Red Econ Chrome Clip | S74: Green Econ Chrome Clip | T74: Yellow Econ Chrome Clip
A75: Clipboard Type
A76: Size/Orientation | B76: O07 | C76: O04 | D76: O06 | E76: O05 | F76: O08 | G76: O21
A77: Attachment | H77: A10 | I77: A11 | J77: A12 | K77: A13 | L77: A94 | M77: A15 | N77: A16 | O77: A19 | P77: A24 | Q77: A124 | R77: A128 | S77: A132 | T77: A133
A79: Clipboard Type | B79: HD St/St Clip | C79: Economy St/St Clip | D79: Economy Chrome Plated | E79: Zinc Clip & Pen Holder | F79: Jumbo Clip | G79: Blue HD St/St Clip | H79: Red HD St/St Clip | I79: Green HD St/St Clip | J79: Yellow HD St/St Clip | K79: Blue Econ Chrome Clip | L79: Red Econ Chrome Clip | M79: Green Econ Chrome Clip | N79: Yellow Econ Chrome Clip
A80: A3 Landscape | B80: 23.2524 | C80: 21.5784 | D80: 21.0168 | E80: 22.14 | F80: 0 | G80: 24.25 | H80: 24.25 | I80: 24.25 | J80: 24.25 | K80: 22.02 | L80: 22.02 | M80: 22.02 | N80: 22.02
A81: A4 Landscape | B81: 13.7484 | C81: 12.0636 | D81: 11.502 | E81: 12.6252 | F81: 0 | G81: 14.75 | H81: 14.75 | I81: 14.75 | J81: 14.75 | K81: 12.5 | L81: 12.5 | M81: 12.5 | N81: 12.5
A82: A5 Landscape | B82: 9.5472 | C82: 7.8084 | D82: 6.6852 | E82: 7.8084 | F82: 0 | G82: 10.55 | H82: 10.55 | I82: 10.55 | J82: 10.55 | K82: 7.79 | L82: 7.79 | M82: 7.79 | N82: 7.79
A83: A3 Portrait | B83: 23.2524 | C83: 21.5784 | D83: 21.0168 | E83: 22.14 | F83: 0 | G83: 24.25 | H83: 24.25 | I83: 24.25 | J83: 24.25 | K83: 22.02 | L83: 22.02 | M83: 22.02 | N83: 22.02
A84: A4 Portrait | B84: 13.7484 | C84: 12.0636 | D84: 11.502 | E84: 12.6252 | F84: 0 | G84: 14.75 | H84: 14.75 | I84: 14.75 | J84: 14.75 | K84: 12.5 | L84: 12.5 | M84: 12.5 | N84: 12.5
A85: A5 Portrait | B85: 9.5472 | C85: 7.8084 | D85: 6.6852 | E85: 7.8084 | F85: 0 | G85: 10.55 | H85: 10.55 | I85: 10.55 | J85: 10.55 | K85: 7.79 | L85: 7.79 | M85: 7.79 | N85: 7.79
A87: Clipboard Type | B87: HD St/St Clip | C87: Economy St/St Clip | D87: Economy Chrome Plated | E87: Zinc Clip & Pen Holder | F87: Jumbo Clip | G87: Blue HD St/St Clip | H87: Red HD St/St Clip | I87: Green HD St/St Clip | J87: Yellow HD St/St Clip | K87: Blue Econ Chrome Clip | L87: Red Econ Chrome Clip | M87: Green Econ Chrome Clip | N87: Yellow Econ Chrome Clip
A88: A3 Landscape | B88: 21.7944 | C88: 20.1096 | D88: 19.548 | E88: 20.6712 | F88: 0
A89: A4 Landscape | B89: 9.5148 | C89: 7.83 | D89: 7.2684 | E89: 8.3916 | F89: 0 | G89: 25 | K89: 22
A90: A5 Landscape | B90: 7.3008 | C90: 0 | D90: 0 | E90: 0 | F90: 0
A91: A3 Portrait | B91: 21.7944 | C91: 20.1096 | D91: 19.548 | E91: 20.6712 | F91: 0
A92: A4 Portrait | B92: 9.5148 | C92: 7.83 | D92: 7.2684 | E92: 8.3916 | F92: 0 | G92: 25 | K92: 22
A93: A5 Portrait | B93: 7.3008 | C93: 0 | D93: 0 | E93: 0 | F93: 0
A95: Clipboard Type | B95: A4 Aluminium | C95: A4 Stainless Steel
A96: Attachment | B96: HD St/St Clip | C96: Economy St/St Clip | D96: Economy Chrome Plated | E96: Zinc Clip & Pen Holder
A98: Clipboard Type | B98: A4 Aluminium | C98: A4 Stainless Steel | D98: HD St/St Clip | E98: Economy St/St Clip | F98: Economy Chrome Plated | G98: Zinc Clip & Pen Holder
B99: P30 | C99: P45
D100: A10 | E100: A11 | F100: A12 | G100: A13
A102: Clipboard Type | B102: HD St/St Clip | C102: Economy St/St Clip | D102: Economy Chrome Plated | E102: Zinc Clip & Pen Holder
A103: A4 Aluminium | B103: 18.306 | C103: 16.848 | D103: 15.768 | E103: 16.0812
A104: A4 Stainless Steel | B104: 28.08 | C104: 24.5916 | D104: 23.0256 | E104: 23.6412
A106: Colour Coded Clipboard Clips (HD ST/ST) | B106: Blue | C106: Red | D106: Green | E106: Yellow
B107: T089 | C107: T090 | D107: T091 | E107: T092
A109: Colour Coded Clipboard Clips (HD ST/ST) | B109: Blue | C109: Red | D109: Green | E109: Yellow
B110: 24.1 | C110: 24.1 | D110: 24.1 | E110: 24.1
A112: Colour Coded Clipboard Clips (Econ Chrome) | B112: Blue | C112: Red | D112: Green | E112: Yellow
B113: T140 | C113: T141 | D113: T142 | E113: T143
A115: Colour Coded Clipboard Clips (Econ Chrome) | B115: Blue | C115: Red | D115: Green | E115: Yellow
B116: 9.5 | C116: 9.5 | D116: 9.5 | E116: 9.5
A118: Bulldog Clip Size | B118: 75mm (3") | C118: 145mm (5.7")
A120: Bulldog Clip Size | B120: 75mm (3") | C120: 145mm (5.7")
B121: S393 | C121: S392
A123: Bulldog Clip Size | B123: 75mm (3") | C123: 145mm (5.7")
B124: 21.6 | C124: 24.5
A129: Clipboard Type | B129: A3 | C129: A4
A130: Attachment | B130: HD St/St Clip | C130: Economy St/St Clip | D130: Economy Chrome Plated | E130: Zinc Clip & Pen Holder
B132: A4 | C132: A3 | D132: HD St/St Clip | E132: Economy St/St Clip | F132: Economy Chrome Plated | G132: Zinc Clip & Pen Holder
A133: Clipboard Size | B133: O17 | C133: O03
A134: Attachment | D134: A10 | E134: A11 | F134: A12 | G134: A13
A136: Clipboard Type | B136: HD St/St Clip | C136: Economy St/St Clip | D136: Economy Chrome Plated | E136: Zinc Clip & Pen Holder
A137: A4 Stainless Steel | B137: 25.95 | C137: 24.91 | D137: 23.87 | E137: 23.29
A139: Clipboard Type | B139: HD St/St Clip | C139: Economy St/St Clip | D139: Economy Chrome Plated | E139: Zinc Clip & Pen Holder
A140: A4 | B140: 17.226 | C140: 15.768 | D140: 14.688 | E140: 15.0012
A141: A3 | B141: 23.2848 | C141: 15.768 | D141: 21.7404 | E141: 23.2848
A144: Clipboard Clips Type | B144: Stainless Steel Heavy Duty | C144: 120 x 30mm economy chrome plated (with hook) | D144: 120 x 30mm economy stainless steel (with hook) | E144: Econ Chrome plated 100mm width | F144: Econ Chrome plated 120mm width | G144: Jumbo Chrome Plated | H144: Zinc Plated clip with pen holder
A146: Clipboard Clips Type | B146: Stainless Steel Heavy Duty | C146: 120 x 30mm economy chrome plated (with hook) | D146: 120 x 30mm economy stainless steel (with hook) | E146: Econ Chrome plated 100mm width | F146: Econ Chrome plated 120mm width | G146: Jumbo Chrome Plated | H146: Zinc Plated clip with pen holder
B147: T185 | C147: T186 | D147: T187 | E147: T093 | F147: T094 | G147: T232 | H147: T188
A149: Clipboard Clips Type | B149: Stainless Steel Heavy Duty | C149: 120 x 30mm economy chrome plated (with hook) | D149: 120 x 30mm economy stainless steel (with hook) | E149: Econ Chrome plated 100mm width | F149: Econ Chrome plated 120mm width | G149: Jumbo Chrome Plated | H149: Zinc Plated clip with pen holder
B150: 18.9 | C150: 9.1 | D150: 12.1 | E150: 6.5 | F150: 7.55 | G150: 12.75 | H150: 10.3
A154: Scoop Type | B154: Mini 175g | C154: Small 500g | D154: Medium 750g | E154: Large 1000g | F154: Blue | G154: Black | H154: Red | I154: Green | J154: Yellow | K154: White | L154: Purple | M154: Orange | N154: Pink
A155: Size | B155: S085 | C155: S086 | D155: S087 | E155: S088
A156: Colour | F156: P01 | G156: P02 | H156: P03 | I156: P04 | J156: P05 | K156: P06 | L156: P07 | M156: P08 | N156: P09
A158: Scoop Type | B158: Mini 175g | C158: Small 500g | D158: Medium 750g | E158: Large 1000g
A159: Price | B159: 9.3 | C159: 15.552 | D159: 31.55 | E159: 45.5
A161: Scoop Type | B161: Small 250ml | C161: Medium 500ml | D161: Large 1000ml | E161: Blue | F161: Red
A162: Size | B162: S089 - S048 | C162: S090 - S050 | D162: S091 - S051
A163: Colour | E163: P01 | F163: P03
A165: Scoop Type | B165: Small 250ml | C165: Medium 500ml | D165: Large 1000ml
A166: Price | B166: 20.196 | C166: 22.248 | D166: 23.85
A168: Round Bowl Scoop | B168: Blue | C168: Black | D168: Red | E168: Green | F168: Yellow | G168: White | H168: Purple | I168: Orange | J168: Pink
B169: P01 | C169: P02 | D169: P03 | E169: P04 | F169: P05 | G169: P06 | H169: P07 | I169: P08 | J169: P09
A171: Scooping Jug | B171: Blue | C171: Black | D171: Red | E171: Green | F171: Yellow | G171: White | H171: Purple | I171: Orange | J171: Pink
B172: P01 | C172: P02 | D172: P03 | E172: P04 | F172: P05 | G172: P06 | H172: P07 | I172: P08 | J172: P09
A174: Stackable Pouring Jug | B174: Blue | C174: Black | D174: Red | E174: Green | F174: Yellow | G174: White | H174: Purple | I174: Orange | J174: Pink
B175: P01 | C175: P02 | D175: P03 | E175: P04 | F175: P05 | G175: P06 | H175: P07 | I175: P08 | J175: P09
A177: Stackable Pouring Jug | B177: Blue | C177: Red
B178: P01 | C178: P03
A181: Pen Ink Type | B181: Economy Refill | C181: Stick Pen Refill | D181: Retractable Refill | E181: Gel Ink Refill
A182: Colour | B182: Blue | C182: Black | D182: Red | E182: Green
A184: Ink Type | B184: Economy Refill | C184: Stick Pen Refill | D184: Standard Refill | E184: Blue | F184: Black | G184: Red | H184: Green | I184: Blue Gel | J184: Black Gel | K184: Red Gel | L184: Green Gel | M184: Blue | N184: Black | O184: Red | P184: Green
A185: Pen Refill Type | B185: 124 | C185: 117 | D185: 100
A186: Colour | E186: I01 | F186: I02 | G186: I03 | H186: I04 | I186: I01 | J186: I02 | K186: I03 | L186: I04 | M186: I01 | N186: I02 | O186: I03 | P186: I04
B188: Blue | C188: Black | D188: Red | E188: Green
A189: Gel | B189: I21 | C189: I22 | D189: I23 | E189: I24
A190: Cryo | B190: I11 | C190: I12
A191: Fine Tip | B191: I31 | C191: I32
A192: Standard | B192: I01 | C192: I02 | D192: I03 | E192: I04
A195: Type | B195: Handheld | C195: Desktop | D195: Pocket
A196: Magnetic status | B196: Magnetic | C196: Non Magnetic
A198: Type | B198: Magnetic | C198: Non Magnetic | D198: Desktop | E198: Handheld | F198: Pocket | G198: Blue | H198: Black | I198: Red | J198: Green | K198: Yellow | L198: White | M198: Purple | N198: Orange | O198: Pink
A199: Magnetic Status | B199: 214 | C199: 200
A200: Type | D200: D | E200: H | F200: P
G201: P01 | H201: P02 | I201: P03 | J201: P04 | K201: P05 | L201: P06 | M201: P07 | N201: P08 | O201: P09
A203: Calculator Type | B203: Desktop | C203: Handheld | D203: Pocket
A204: Magnetic | B204: 9.666 | C204: 6.426 | D204: 6.426
A205: Non Magnetic | B205: 6.426 | C205: 3.186 | D205: 3.186
A207: Calculator Type | B207: Desktop | C207: Handheld | D207: Pocket
A209: Type | B209: Desktop | C209: Handheld | D209: Pocket
B210: D | C210: H | D210: P
A212: Type | B212: Desktop | C212: Handheld | D212: Pocket
B213: 17.5392 | C213: 11.2212 | D213: 11.2212
A215: Ruler Type | B215: 150mm (6") | C215: 300mm (12")
A217: Type | B217: 150mm (6") | C217: 300mm (12")
B218: S069 | C218: S075
A220: Type | B220: 150mm (6") | C220: 300mm (12")
B221: 4.104 | C221: 5.5
A223: Stainless Steel Ruler Type | B223: 150mm (6") | C223: 300mm (12") | D223: 450mm (18")
A225: Type | B225: 150mm (6") | C225: 300mm (12") | D225: 450mm (18")
B226: S069 | C226: S075 | D226: S080
A228: Type | B228: 150mm (6") | C228: 300mm (12") | D228: 450mm (18")
B229: 0.6696 | C229: 1.1772 | D229: 3.0888
A231: Flexi Scraper Type | B231: Small | C231: Large
A233: Flexi Scraper Type | B233: Small | C233: Large | D233: Blue | E233: Black | F233: Red | G233: Green | H233: Yellow | I233: White | J233: Purple | K233: Orange | L233: Pink
B234: TO95 | C234: TO96
D235: P01 | E235: P02 | F235: P03 | G235: P04 | H235: P05 | I235: P06 | J235: P07 | K235: P08 | L235: P09
A237: Flexi Scraper Type | B237: Small | C237: Large
B238: 2.8 | C238: 10.2
A240: Serrated Edge Scraper Type | B240: Small | C240: Large
A242: Serrated Edge Scraper Type | B242: Small | C242: Large | D242: Blue | E242: Black | F242: Red | G242: Green | H242: Yellow | I242: White | J242: Purple | K242: Orange | L242: Pink
B243: S089 | C243: S091
D244: P01 | E244: P02 | F244: P03 | G244: P04 | H244: P05 | I244: P06 | J244: P07 | K244: P08 | L244: P09
A246: Serrated Edge Scraper Type | B246: Small | C246: Large
B247: 5.4 | C247: 8.7
A250: Hand Scraper Size | B250: 3" | C250: 4"
A252: Hand Scraper Size | B252: 3" | C252: 4" | D252: Blue | E252: Black | F252: Red | G252: Green | H252: Yellow | I252: White | J252: Purple | K252: Orange | L252: Pink
B253: S104 | C253: S105
D254: P01 | E254: P02 | F254: P03 | G254: P04 | H254: P05 | I254: P06 | J254: P07 | K254: P08 | L254: P09
A256: Hand Scraper Size | B256: 3" | C256: 4"
B257: 7.8 | C257: 11
A259: Scrapers - Plastic/Metal Type | B259: Flexi - Blade Size = 120mm (4.7") | C259: Rigid - Blade Size = 150mm (5.9")
A261: Scrapers - Plastic/Metal Type | B261: Flexi - Blade Size = 120mm (4.7") | C261: Rigid - Blade Size = 150mm (5.9")
B262: S095 | C262: S096
A264: Scrapers - Plastic/Metal Type | B264: Flexi - Blade Size = 120mm (4.7") | C264: Rigid - Blade Size = 150mm (5.9")
B265: 7.4 | C265: 12.1
A267: Stainless Steel Scrapers Type | B267: Flexi | C267: Rigid
A269: Stainless Steel Scrapers Type | B269: Flexi | C269: Rigid
B270: T095 | C270: T096
A272: Stainless Steel Scrapers Type | B272: Flexi | C272: Rigid
B273: 4.4 | C273: 5.8536
A275: Stirrer/Scraper Type | B275: With Holes | C275: Without Holes
A277: Stirrer/Scraper Type | B277: With Holes | C277: Without Holes | D277: Blue | E277: Red | F277: Green | G277: Yellow | H277: White
B278: A50 | C278: A51
D279: P01 | E279: P03 | F279: P04 | G279: P05 | H279: P06
A281: Stirrer/Scraper Type | B281: With Holes | C281: Without Holes
B282: 3.6504 | C282: 3.8772
A284: Spatula | B284: Blue | C284: Red | D284: Green | E284: Yellow | F284: White
B285: P01 | C285: P03 | D285: P04 | E285: P05 | F285: P06
A290: Shovel Type | B290: Hand Shovel | C290: Large Shovel
... 802 more rows

Sheet Instructions
A1: Instructions
A2: After opening this Order Form, please enter the quantity for each item. A running total is calculated. Once you have completed your selections you have 2 options: - Save the file and email it to sales@detectablematerials.com - Save it as a PDF file and fax it to (908) 236-0278 If you have any questions please contact us at sales@detectablematerials.com OR call us at 1-844-564-9216
